fUSD/lending_fUSD_20240117
["ID","MTS","AMOUNT","RATE_DAILY","PERIOD"]
[311888687,1705489857153,-500.0,0.00022191,2]
[311888688,1705489857168,-500.0,0.00022191,2]
[311888689,1705489857178,-544.59,0.00022191,2]
[311888690,1705489857188,-2849.83,0.00022191,2]
[311888691,1705489857199,-1964.36,0.00022191,2]
[311888692,1705489857208,-500.0,0.00022191,2]
[311888693,1705489857219,-2896.5,0.00022191,2]
[311888694,1705489857228,-1968.52,0.00022191,2]
[311888695,1705489857238,-683.02,0.00022191,2]
[311888696,1705489857249,-1342.01,0.00022191,2]
[311888697,1705489857260,-500.0,0.00022191,2]
[311888698,1705489857270,-675.72,0.00022191,2]
[311888699,1705489857280,-500.0,0.00022191,2]
[311888700,1705489857290,-1029.41,0.00022191,2]
[311888701,1705489857300,-500.0,0.00022191,2]
[311888702,1705489857310,-1548.58,0.00022191,2]
[311888703,1705489857319,-500.0,0.00022191,2]
[311888704,1705489857332,-500.0,0.00022191,2]
[311888705,1705489857345,-655.65,0.00022191,2]
[311888706,1705489857354,-500.0,0.00022191,2]
[311888707,1705489857363,-3528.9,0.00022191,2]
[311888708,1705489857373,-500.0,0.00022191,2]
[311888709,1705489857382,-550.17,0.00022191,2]
[311888710,1705489857392,-530.48,0.00022191,2]
[311888711,1705489857401,-1274.2,0.00022191,2]
[311888712,1705489857410,-1478.93,0.00022191,2]
[311888713,1705489857421,-500.0,0.00022191,2]
[311888714,1705489857431,-710.03,0.00022191,2]
[311888715,1705489857441,-8305.92,0.00022191,2]
[311888716,1705489857451,-826.31,0.00022191,2]
[311888717,1705489857460,-500.0,0.00022191,2]
[311888718,1705489857470,-3468.63,0.00022191,2]
[311888719,1705489857480,-688.83,0.00022191,2]
[311888720,1705489857490,-598.69,0.00022191,2]
[311888721,1705489857500,-13840.01,0.00022191,2]
[311888722,1705489857511,-566.04,0.00022191,2]
[311888723,1705489857520,-500.0,0.00022191,2]
[311888724,1705489857530,-330.45,0.00022191,2]
[311888725,1705489857539,-611.72,0.00022191,2]
[311888726,1705489857549,-678.15,0.00022191,2]
[311888727,1705489857559,-500.0,0.00022191,2]
[311888728,1705489857569,-6007.21,0.00022191,2]
[311888729,1705489857579,-11260.59,0.00022191,2]
[311888730,1705489857589,-537.26,0.00022191,2]
[311888731,1705489857599,-576.52,0.00022191,2]
[311888732,1705489857608,-839.94,0.00022191,2]
[311888733,1705489857617,-9043.74,0.00022191,2]
[311888734,1705489857626,-500.0,0.00022191,2]
[311888735,1705489857636,-500.0,0.00022191,2]
[311888736,1705489857645,-2267.53,0.00022191,2]
[311888737,1705489857654,-2426.8,0.00022191,2]
[311888738,1705489857664,-785.85,0.00022191,2]
[311888739,1705489857674,-500.0,0.00022191,2]
[311888740,1705489857683,-1153.46,0.00022191,2]
[311888741,1705489857692,-5019.46,0.00022191,2]
[311888742,1705489857702,-14230.88,0.00022191,2]
[311888743,1705489857712,-1948.18,0.00022191,2]
[311888744,1705489857722,-648.92,0.00022191,2]
[311888745,1705489857732,-500.0,0.00022191,2]
[311888746,1705489857742,-585.41,0.00022191,2]
[311888747,1705489857753,-807.32,0.00022191,2]
[311888748,1705489857763,-500.0,0.00022191,2]
[311888749,1705489857773,-500.0,0.00022191,2]
[311888750,1705489857782,-1841.76,0.00022191,2]
[311888751,1705489857791,-541.68,0.00022191,2]
[311888752,1705489857801,-500.0,0.00022191,2]
[311888753,1705489857811,-1313.51,0.00022191,2]
[311888754,1705489857820,-500.0,0.00022191,2]
[311888755,1705489857830,-7863.6,0.00022191,2]
[311888756,1705489857839,-669.79,0.00022191,2]
[311888757,1705489857849,-595.77761561,0.00022191,2]
[311888758,1705489857858,-500.0,0.00022191,2]
[311888759,1705489857867,-1235.43,0.00022191,2]
[311888760,1705489857877,-1875.02,0.00022191,2]
[311888761,1705489857886,-697.24,0.00022191,2]
[311888762,1705489857896,-500.0,0.00022191,2]
[311888763,1705489857906,-886.27,0.00022191,2]
[311888764,1705489857915,-861.27,0.00022191,2]
[311888765,1705489857925,-863.63,0.00022191,2]
[311888766,1705489857934,-2235.54,0.00022191,2]
[311888767,1705489857944,-6074.67,0.00022191,2]
[311888768,1705489857955,-524.02,0.00022191,2]
[311888769,1705489857964,-500.0,0.00022191,2]
[311888770,1705489857974,-500.0,0.00022191,2]
[311888771,1705489857983,-4516.86,0.00022191,2]
[311888772,1705489857992,-500.0,0.00022191,2]
[311888773,1705489858001,-3841.76,0.00022191,2]
[311888774,1705489858011,-500.0,0.00022191,2]
[311888775,1705489858021,-974.16,0.00022191,2]
[311888776,1705489858119,-4448.34,0.00022191,2]
[311888777,1705489858130,-4150.83,0.00022191,2]
[311888778,1705489858139,-566.02,0.00022191,2]
[311888779,1705489858148,-500.0,0.00022191,2]
[311888780,1705489858158,-500.0,0.00022191,2]
[311888781,1705489858167,-500.0,0.00022191,2]
[311888782,1705489858176,-533.91,0.00022191,2]
[311888783,1705489858186,-500.0,0.00022191,2]
[311888784,1705489858195,-500.0,0.00022191,2]
[311888785,1705489858205,-1309.04,0.00022191,2]
[311888786,1705489858214,-500.0,0.00022191,2]
[311888787,1705489858224,-500.0,0.00022191,2]
[311888788,1705489858233,-2935.1,0.00022191,2]
[311888789,1705489858242,-1965.44,0.00022191,2]
[311888790,1705489858252,-992.22,0.00022191,2]
[311888791,1705489858262,-984.15,0.00022191,2]
[311888792,1705489858272,-329.51236262,0.00022191,2]
[311888793,1705489858282,-500.0,0.00022191,2]
[311888794,1705489858291,-1696.71,0.00022191,2]
[311888795,1705489858300,-32469.27,0.00022191,2]
[311888796,1705489858310,-500.0,0.00022191,2]
[311888797,1705489858320,-508.72341133,0.00022191,2]
[311888798,1705489858329,-573.08,0.00022191,2]
[311888799,1705489858339,-500.0,0.00022191,2]
[311888800,1705489858351,-661.33,0.00022191,2]
[311888801,1705489858360,-615.65,0.00022191,2]
[311888802,1705489858369,-649.27,0.00022191,2]
[311888803,1705489858378,-2575.9,0.00022191,2]
[311888804,1705489858389,-1939.24,0.00022191,2]
[311888805,1705489858398,-3511.42,0.00022191,2]
[311888806,1705489858408,-500.0,0.00022191,2]
[311888807,1705489858419,-500.0,0.00022191,2]
[311888808,1705489858428,-500.0,0.00022191,2]
[311888809,1705489858437,-500.0,0.00022191,2]
[311888810,1705489858447,-500.0,0.00022191,2]
[311888811,1705489858456,-1929.09,0.00022191,2]
[311888812,1705489858465,-500.0,0.00022191,2]
[311888813,1705489858475,-1412.27,0.00022191,2]
[311888814,1705489858484,-2389.77,0.00022191,2]
[311888815,1705489858493,-2475.33,0.00022191,2]
[311888816,1705489858503,-4575.47,0.00022191,2]
[311888817,1705489858513,-661.55,0.00022191,2]
[311888818,1705489858522,-14816.63,0.00022191,2]
[311888819,1705489858531,-1653.65,0.00022191,2]
[311888820,1705489858540,-500.0,0.00022191,2]
[311888821,1705489858550,-1732.77,0.00022191,2]
[311888822,1705489858558,-500.0,0.00022191,2]
[311888823,1705489858568,-834.9,0.00022191,2]
[311888824,1705489858577,-8016.45,0.00022191,2]
[311888825,1705489858586,-500.0,0.00022191,2]
[311888826,1705489858596,-1784.49,0.00022191,2]
[311888827,1705489858605,-1352.99,0.00022191,2]
[311888828,1705489858615,-558.85,0.00022191,2]
[311888829,1705489858625,-500.0,0.00022191,2]
[311888830,1705489858634,-678.67,0.00022191,2]
[311888831,1705489858644,-1038.1,0.00022191,2]
[311888832,1705489858654,-9036.89,0.00022191,2]
[311888833,1705489858663,-815.12,0.00022191,2]
[311888834,1705489858673,-500.0,0.00022191,2]
[311888835,1705489858682,-1774.09,0.00022191,2]
[311888836,1705489858692,-500.0,0.00022191,2]
[311888837,1705489858701,-502.32,0.00022191,2]
[311888838,1705489858711,-2414.66,0.00022191,2]
[311888839,1705489858720,-500.0,0.00022191,2]
[311888840,1705489858730,-5111.21,0.00022191,2]
[311888841,1705489858740,-500.0,0.00022191,2]
[311888842,1705489858749,-500.0,0.00022191,2]
[311888843,1705489858759,-1734.88,0.00022191,2]
[311888844,1705489858769,-855.29,0.00022191,2]
[311888845,1705489858778,-500.0,0.00022191,2]
[311888846,1705489858787,-500.0,0.00022191,2]
[311888847,1705489858796,-2245.54,0.00022191,2]
[311888848,1705489858805,-500.0,0.00022191,2]
[311888849,1705489858814,-1744.59,0.00022191,2]
[311888850,1705489858824,-500.0,0.00022191,2]
[311888851,1705489858833,-1274.36,0.00022191,2]
[311888852,1705489858842,-500.0,0.00022191,2]
[311888853,1705489858852,-706.05,0.00022191,2]
[311888854,1705489858861,-1510.08,0.00022191,2]
[311888855,1705489858870,-500.0,0.00022191,2]
[311888856,1705489858879,-500.0,0.00022191,2]
[311888857,1705489858889,-887.83,0.00022191,2]
[311888858,1705489858898,-1357.1,0.00022191,2]
[311888859,1705489858907,-1827.37,0.00022191,2]
[311888860,1705489858917,-1435.95,0.00022191,2]
[311888861,1705489858927,-584.24,0.00022191,2]
[311888862,1705489858937,-663.37,0.00022191,2]
[311888863,1705489858947,-779.77,0.00022191,2]
[311888864,1705489858956,-500.0,0.00022191,2]
[311888865,1705489858966,-597.44,0.00022191,2]
[311888866,1705489858975,-4561.81,0.00022191,2]
[311888867,1705489858985,-500.0,0.00022191,2]
[311888868,1705489858994,-458.7716971,0.00022191,2]
[311888869,1705489859003,-500.0,0.00022191,2]
[311888870,1705489859014,-500.0,0.00022191,2]
[311888871,1705489859023,-3629.95,0.00022191,2]
[311888872,1705489859032,-1883.37,0.00022191,2]
[311888873,1705489859042,-916.35,0.00022191,2]
[311888874,1705489859051,-992.47,0.00022191,2]
[311888875,1705489859061,-1639.63,0.00022191,2]
[311888876,1705489859070,-1741.77,0.00022191,2]
[311888877,1705489859079,-500.0,0.00022191,2]
[311888878,1705489859089,-373.71,0.00022191,2]
[311888879,1705489859098,-3959.88,0.00022191,2]
[311888880,1705489859107,-820.93,0.00022191,2]
[311888881,1705489859117,-7153.04,0.00022191,2]
[311888882,1705489859126,-500.0,0.00022191,2]
[311888883,1705489859135,-2360.61,0.00022191,2]
[311888884,1705489859144,-782.9,0.00022191,2]
[311888885,1705489859154,-500.0,0.00022191,2]
[311888886,1705489859163,-806.13,0.00022191,2]
[311888887,1705489859173,-307.76138054,0.00022191,2]
[311888888,1705489859182,-500.0,0.00022191,2]
[311888889,1705489859191,-507.5,0.00022191,2]
[311888890,1705489859200,-1392.64,0.00022191,2]
[311888891,1705489859209,-1083.43,0.00022191,2]
[311888892,1705489859218,-500.0,0.00022191,2]
[311888893,1705489859228,-778.97,0.00022191,2]
[311888894,1705489859237,-500.0,0.00022191,2]
[311888895,1705489859246,-909.26,0.00022191,2]
[311888896,1705489859257,-979.46,0.00022191,2]
[311888897,1705489859266,-3419.57,0.00022191,2]
[311888898,1705489859276,-1060.67,0.00022191,2]
[311888899,1705489859285,-1861.48,0.00022191,2]
[311888900,1705489859294,-3566.82,0.00022191,5]
[311888901,1705489859305,-2842.76,0.00022191,2]
[311888902,1705489859314,-1210.04,0.00022191,2]
[311888903,1705489859324,-1159.83,0.00022191,2]
[311888904,1705489859335,-1906.25,0.00022191,2]
[311888905,1705489859346,-1195.39,0.00022191,2]
[311888906,1705489859356,-5873.11,0.00022191,2]
[311888907,1705489859365,-500.0,0.00022191,2]
[311888908,1705489859375,-500.0,0.00022191,2]
[311888909,1705489859385,-1059.12,0.00022191,2]
[311888910,1705489859395,-500.0,0.00022191,2]
[311888911,1705489859404,-500.0,0.00022191,2]
[311888912,1705489859413,-2140.36,0.00022191,2]
[311888913,1705489859423,-3914.25,0.00022191,2]
[311888914,1705489859432,-1418.66,0.00022191,2]
[311888915,1705489859442,-1392.42,0.00022191,2]
[311888916,1705489859451,-1713.01,0.00022191,2]
[311888917,1705489859460,-500.0,0.00022191,2]
[311888918,1705489859470,-500.0,0.00022191,2]
[311888919,1705489859479,-778.99,0.00022191,2]
[311888920,1705489859488,-2146.35,0.00022191,2]
[311888921,1705489859498,-500.0,0.00022191,2]
[311888922,1705489859509,-2303.4,0.00022191,2]
[311888923,1705489859519,-500.0,0.00022191,2]
[311888924,1705489859529,-500.0,0.00022191,2]
[311888925,1705489859540,-500.0,0.00022191,2]
[311888926,1705489859550,-2140.57,0.00022191,2]
[311888927,1705489859560,-4765.45,0.00022191,2]
[311888928,1705489859570,-500.0,0.00022191,2]
[311888929,1705489859580,-1461.06,0.00022191,2]
[311888930,1705489859590,-500.0,0.00022191,2]
[311888931,1705489859601,-672.09,0.00022191,2]
[311888932,1705489859610,-1784.9,0.00022191,2]
[311888933,1705489859620,-539.85,0.00022191,2]
[311888934,1705489859629,-1509.91,0.00022191,2]
[311888935,1705489859638,-27781.74,0.00022191,2]
[311888936,1705489859647,-534.01,0.00022191,2]
[311888937,1705489859657,-881.13,0.00022191,2]
[311888938,1705489859666,-1969.05,0.00022191,2]
[311888939,1705489859675,-2094.77,0.00022191,2]
[311888940,1705489859686,-591.22,0.00022191,2]
[311888941,1705489859696,-500.0,0.00022191,2]
[311888942,1705489859706,-500.0,0.00022191,2]
[311888943,1705489859717,-1724.25,0.00022191,2]
[311888944,1705489859727,-500.0,0.00022191,2]
[311888945,1705489859738,-2966.94,0.00022191,2]
[311888946,1705489859749,-500.0,0.00022191,2]
[311888947,1705489859760,-500.0,0.00022191,2]
[311888948,1705489859771,-500.0,0.00022191,2]
[311888949,1705489859781,-1073.7,0.00022191,2]
[311888950,1705489859793,-2716.01,0.00022191,2]
[311888951,1705489859804,-856.24,0.00022191,2]
[311888952,1705489859816,-3130.06,0.00022191,2]
[311888953,1705489859826,-5190.51,0.00022191,2]
[311888954,1705489859837,-1373.46,0.00022191,2]
[311888955,1705489859850,-1107.84,0.00022191,2]
[311888956,1705489859860,-500.0,0.00022191,2]
[311888957,1705489859873,-500.0,0.00022191,2]
[311888958,1705489859884,-4976.8,0.00022191,2]
[311888959,1705489859895,-2577.68,0.00022191,2]
[311888960,1705489859905,-1821.72,0.00022191,2]
[311888961,1705489859915,-500.0,0.00022191,2]
[311888962,1705489859925,-500.0,0.00022191,2]
[311888963,1705489859935,-2636.23,0.00022191,2]
[311888964,1705489859944,-500.0,0.00022191,2]
[311888965,1705489859955,-500.0,0.00022191,2]
[311888966,1705489859965,-795.84,0.00022191,2]
[311888967,1705489859975,-4042.57,0.00022191,2]
[311888968,1705489859985,-1181.55,0.00022191,2]
[311888969,1705489859995,-500.0,0.00022191,2]
[311888970,1705489860005,-500.0,0.00022191,2]
[311888971,1705489860016,-500.0,0.00022191,2]
[311888972,1705489860026,-500.0,0.00022191,2]
[311888973,1705489860035,-1662.15,0.00022191,2]
[311888974,1705489860045,-964.47,0.00022191,2]
[311888975,1705489860056,-500.0,0.00022191,2]
[311888976,1705489860067,-829.46,0.00022191,2]
[311888977,1705489860077,-1443.1,0.00022191,2]
[311888978,1705489860086,-500.0,0.00022191,2]
[311888979,1705489860096,-1683.87,0.00022191,2]
[311888980,1705489860106,-1912.07,0.00022191,2]
[311888981,1705489860116,-500.0,0.00022191,2]
[311888982,1705489860125,-649.62,0.00022191,2]
[311888983,1705489860134,-602.95,0.00022191,2]
[311888984,1705489860146,-2975.27,0.00022191,2]
[311888985,1705489860156,-1794.36,0.00022191,2]
[311888986,1705489860166,-1938.89,0.00022191,2]
[311888987,1705489860177,-3013.34,0.00022191,2]
[311888988,1705489860186,-8143.8,0.00022191,2]
[311888989,1705489860197,-500.0,0.00022191,2]
[311888990,1705489860206,-1207.37,0.00022191,2]
[311888991,1705489860216,-509.62,0.00022191,2]
[311888992,1705489860226,-1304.2,0.00022191,2]
[311888993,1705489860235,-500.0,0.00022191,2]
[311888994,1705489860245,-1538.7,0.00022191,2]
[311888995,1705489860256,-924.58,0.00022191,2]
[311888996,1705489860266,-2403.64,0.00022191,2]
[311888997,1705489860276,-500.0,0.00022191,2]
[311888998,1705489860287,-500.0,0.00022191,2]
[311888999,1705489860297,-852.81,0.00022191,2]
[311889000,1705489860307,-1937.17,0.00022191,2]
[311889001,1705489860316,-1023.73,0.00022191,2]
[311889002,1705489860326,-1179.93,0.00022191,2]
[311889003,1705489860337,-500.0,0.00022191,2]
[311889004,1705489860349,-2592.46,0.00022191,2]
[311889005,1705489860358,-968.29,0.00022191,2]
[311889006,1705489860368,-3413.16,0.00022191,2]
[311889007,1705489860378,-500.0,0.00022191,2]
[311889008,1705489860388,-500.0,0.00022191,2]
[311889009,1705489860398,-500.0,0.00022191,2]
[311889010,1705489860407,-1297.47,0.00022191,2]
[311889011,1705489860417,-745.84,0.00022191,2]
[311889012,1705489860427,-2908.69,0.00022191,2]
[311889013,1705489860437,-1190.11,0.00022191,2]
[311889014,1705489860448,-500.0,0.00022191,2]
[311889015,1705489860459,-815.9,0.00022191,2]
[311889016,1705489860470,-500.0,0.00022191,2]
[311889017,1705489860480,-8716.14,0.00022191,2]
[311889018,1705489860489,-601.43,0.00022191,2]
[311889019,1705489860500,-3604.29,0.00022191,5]
[311889020,1705489860510,-2488.53,0.00022191,2]
[311889021,1705489860520,-500.0,0.00022191,2]
[311889022,1705489860530,-681.48,0.00022191,2]
[311889023,1705489860541,-1866.72,0.00022191,2]
[311889024,1705489860551,-500.0,0.00022191,2]
[311889025,1705489860561,-571.22,0.00022191,2]
[311889026,1705489860570,-737.47,0.00022191,2]
[311889027,1705489860580,-1014.39,0.00022191,2]
[311889028,1705489860591,-500.0,0.00022191,2]
[311889029,1705489860600,-692.46,0.00022191,2]
[311889030,1705489860610,-612.12,0.00022191,2]
[311889031,1705489860620,-1438.0,0.00022192,2]
[311889032,1705489860630,-158.88,0.00022201,2]
[311889033,1705489860639,-440.39,0.00022226,2]
[311889034,1705489860648,-638.84363241,0.00022287,2]
[311889035,1705489860658,-163.49,0.00022303,2]
[311889036,1705489860668,-617.74133402,0.00022365,3]
[311889037,1705489860678,-6608.47556182,0.00022365,2]
[311889038,1705489860688,-638.84363241,0.00022443,2]
[311889039,1705489860698,-157.38,0.00022446,2]
[311889040,1705489860708,-353.39032026,0.00022463,2]
[311889041,1705489860718,-156.72569328,0.00022463,2]
[311889042,1705489860728,-155.32611172,0.00022463,2]
[311889043,1705489860736,-233.99962538,0.00022463,2]
[311889044,1705489860745,-199.33340731,0.00022463,2]
[311889045,1705489860755,-190.39469178,0.00022463,2]
[311889046,1705489860767,-767.90994685,0.00022463,2]
[311889047,1705489860777,-155.0,0.00022463,2]
[311889048,1705489860787,-162.63392398,0.00022463,2]
[311889049,1705489860797,-563.05698065,0.00022463,2]
[311889050,1705489860807,-243.64840877,0.00022463,2]
[311889051,1705489860817,-315.45920087,0.00022463,2]
[311889052,1705489860826,-10807.0,0.00022463,2]
[311889053,1705489860836,-233.03383861,0.00022463,2]
[311889054,1705489860848,-622.07746297,0.00022463,2]
[311889055,1705489860857,-330.96,0.00022463,2]
[311889056,1705489860866,-500.0,0.00022464,2]
[311889057,1705489860875,-500.0,0.00022464,2]
[311889058,1705489860885,-623.96918633,0.00022464,2]
[311889059,1705489860894,-300.0,0.00022464,2]
[311889060,1705489860903,-300.0,0.00022464,2]
[311889061,1705489860913,-3134.72,0.00022464,2]
[311889062,1705489860922,-3134.72,0.00022464,2]
[311889063,1705489860932,-3134.72,0.00022464,2]
[311889064,1705489860943,-3134.72,0.00022464,2]
[311889065,1705489860954,-715.07,0.00022465,2]
[311889066,1705489860964,-1504.83,0.00022465,2]
[311889067,1705489860974,-500.0,0.00022465,2]
[311889068,1705489860984,-752.6,0.00022465,2]
[311889069,1705489860994,-357.37591951,0.00022465,2]
[311889070,1705489861004,-500.0,0.00022465,2]
[311889071,1705489861017,-500.0,0.00022465,2]
[311889072,1705489861028,-500.0,0.00022465,2]
[311889073,1705489861038,-1005.29,0.00022465,2]
[311889074,1705489861047,-581.65,0.00022465,2]
[311889075,1705489861059,-500.0,0.00022465,2]
[311889076,1705489861071,-724.82,0.00022465,2]
[311889077,1705489861081,-500.0,0.00022465,2]
[311889078,1705489861091,-331.7419735,0.00022465,2]
[311889079,1705489861101,-500.0,0.00022465,2]
[311889080,1705489861111,-600.28,0.00022465,2]
[311889081,1705489861121,-500.0,0.00022465,2]
[311889082,1705489861131,-500.0,0.00022465,2]
[311889083,1705489861141,-568.6,0.00022465,2]
[311889084,1705489861151,-511.35851358,0.00022465,2]
[311889085,1705489861160,-500.0,0.00022465,2]
[311889086,1705489861170,-500.0,0.00022465,2]
[311889087,1705489861180,-500.0,0.00022465,2]
[311889088,1705489861189,-500.0,0.00022465,2]
[311889089,1705489861198,-514.64,0.00022465,2]
[311889090,1705489861208,-548.01472579,0.00022465,2]
[311889091,1705489861218,-522.85,0.00022465,2]
[311889092,1705489861227,-500.0,0.00022465,2]
[311889093,1705489861237,-561.37,0.00022465,2]
[311889094,1705489861247,-500.0,0.00022465,2]
[311889095,1705489861256,-500.0,0.00022465,2]
[311889096,1705489861267,-209.46140782,0.00022465,2]
[311889097,1705489861277,-506.78391509,0.00022465,2]
[311889098,1705489861286,-569.46,0.00022465,2]
[311889099,1705489861296,-500.0,0.00022465,2]
[311889100,1705489861305,-564.18,0.00022465,2]
[311889101,1705489861315,-268.89613024,0.00022465,2]
[311889102,1705489861324,-1178.46,0.00022465,2]
[311889103,1705489861334,-500.0,0.00022465,2]
[311889104,1705489861346,-573.27,0.00022465,2]
[311889105,1705489861355,-500.0,0.00022465,2]
[311889106,1705489861364,-540.7,0.00022465,2]
[311889107,1705489861374,-500.0,0.00022465,2]
[311889108,1705489861383,-500.0,0.00022465,2]
[311889109,1705489861393,-500.0,0.00022465,2]
[311889110,1705489861402,-507.73,0.00022465,2]
[311889111,1705489861412,-500.0,0.00022465,2]
[311889112,1705489861421,-500.0,0.00022465,2]
[311889113,1705489861432,-500.0,0.00022465,2]
[311889114,1705489861441,-313.52,0.00022465,2]
[311889115,1705489861451,-500.0,0.00022465,2]
[311889116,1705489861461,-500.0,0.00022465,2]
[311889117,1705489861470,-500.0,0.00022465,2]
[311889118,1705489861480,-554.53,0.00022465,2]
[311889119,1705489861490,-676.5,0.00022465,2]
[311889120,1705489861500,-500.0,0.00022465,2]
[311889121,1705489861510,-569.53,0.00022465,2]
[311889122,1705489861520,-500.0,0.00022465,2]
[311889123,1705489861530,-500.0,0.00022465,2]
[311889124,1705489861540,-500.0,0.00022465,2]
[311889125,1705489861551,-773.49,0.00022465,2]
[311889126,1705489861561,-500.0,0.00022465,2]
[311889127,1705489861571,-500.0,0.00022465,2]
[311889128,1705489861581,-500.0,0.00022465,2]
[311889129,1705489861591,-713.2,0.00022465,2]
[311889130,1705489861600,-924.46,0.00022465,2]
[311889131,1705489861611,-500.0,0.00022465,2]
[311889132,1705489861621,-500.0,0.00022465,2]
[311889133,1705489861631,-1087.8,0.00022465,2]
[311889134,1705489861641,-748.0,0.00022465,2]
[311889135,1705489861650,-590.98,0.00022465,2]
[311889136,1705489861661,-500.0,0.00022465,2]
[311889137,1705489861671,-1140.29,0.00022465,2]
[311889138,1705489861681,-500.0,0.00022465,2]
[311889139,1705489861692,-500.0,0.00022465,2]
[311889140,1705489861702,-771.56,0.00022465,2]
[311889141,1705489861714,-500.0,0.00022465,2]
[311889142,1705489861725,-500.0,0.00022465,2]
[311889143,1705489861735,-500.0,0.00022465,2]
[311889144,1705489861744,-500.0,0.00022465,2]
[311889145,1705489861755,-500.0,0.00022465,2]
[311889146,1705489861766,-500.0,0.00022465,2]
[311889147,1705489861775,-500.0,0.00022465,2]
[311889148,1705489861784,-500.0,0.00022465,2]
[311889149,1705489861793,-841.84,0.00022465,2]
[311889150,1705489861803,-1103.54,0.00022465,2]
[311889151,1705489861813,-771.02,0.00022465,2]
[311889152,1705489861822,-674.53,0.00022465,2]
[311889153,1705489861831,-500.0,0.00022465,2]
[311889154,1705489861843,-500.0,0.00022465,2]
[311889155,1705489861853,-1012.5,0.00022465,2]
[311889156,1705489861861,-708.29,0.00022465,2]
[311889157,1705489861870,-902.18,0.00022465,2]
[311889158,1705489861881,-642.34,0.00022465,2]
[311889159,1705489861890,-500.0,0.00022465,2]
[311889160,1705489861900,-1577.38,0.00022465,2]
[311889161,1705489861909,-500.0,0.00022465,2]
[311889162,1705489861918,-500.0,0.00022465,2]
[311889163,1705489861928,-500.0,0.00022465,2]
[311889164,1705489861937,-500.0,0.00022465,2]
[311889165,1705489861947,-642.91,0.00022465,2]
[311889166,1705489861956,-671.72,0.00022465,2]
[311889167,1705489861966,-559.49,0.00022465,2]
[311889168,1705489861975,-500.0,0.00022465,2]
[311889169,1705489861986,-1101.33,0.00022465,2]
[311889170,1705489861996,-560.17,0.00022465,2]
[311889171,1705489862005,-513.19,0.00022465,2]
[311889172,1705489862018,-646.26,0.00022465,2]
[311889173,1705489862027,-500.0,0.00022465,2]
[311889174,1705489862037,-500.0,0.00022465,2]
[311889175,1705489862047,-500.0,0.00022465,2]
[311889176,1705489862057,-500.0,0.00022465,2]
[311889177,1705489862066,-500.0,0.00022465,2]
[311889178,1705489862075,-540.47,0.00022465,2]
[311889179,1705489862085,-1309.23,0.00022465,2]
[311889180,1705489862094,-500.0,0.00022465,2]
[311889181,1705489862104,-862.21,0.00022465,2]
[311889182,1705489862113,-500.0,0.00022465,2]
[311889183,1705489862123,-592.26,0.00022465,2]
[311889184,1705489862132,-500.0,0.00022465,2]
[311889185,1705489862142,-548.37,0.00022465,2]
[311889186,1705489862152,-852.28,0.00022465,2]